lending/lending_fUSD_20250913
["ID","MTS","AMOUNT","RATE_DAILY","PERIOD"]
[385378735,1757802648583,-151.0,0.00027247,2]
[385378736,1757802648593,-322.6107,0.00027247,2]
[385378737,1757802648602,-9552.16786547,0.00027247,2]
[385378738,1757802648611,-721.12765535,0.00027247,2]
[385378739,1757802648620,-250.0,0.00027247,2]
[385378740,1757802648630,-151.0,0.00027247,2]
[385378741,1757802648639,-250.0,0.00027247,2]
[385378742,1757802648649,-292.08557346,0.00027247,2]
[385378743,1757802648658,-250.0,0.00027247,2]
[385378744,1757802648668,-250.0,0.00027247,2]
[385378745,1757802648677,-250.0,0.00027247,2]
[385378746,1757802648686,-277.35679052,0.00027247,2]
[385378747,1757802648696,-250.0,0.00027247,2]
[385378748,1757802648705,-250.0,0.00027247,2]
[385378749,1757802648714,-250.0,0.00027247,2]
[385378750,1757802648723,-250.0,0.00027247,2]
[385378751,1757802648733,-250.0,0.00027247,2]
[385378752,1757802648742,-160.0,0.00027247,2]
[385378753,1757802648751,-250.0,0.00027247,2]
[385378754,1757802648760,-1000.0,0.00027247,2]
[385378755,1757802648769,-1000.0,0.00027247,2]
[385378756,1757802648777,-1000.0,0.00027247,2]
[385378757,1757802648787,-500.0,0.00027247,2]
[385378758,1757802648796,-1000.0,0.00027247,2]
[385378759,1757802648805,-250.0,0.00027247,2]
[385378760,1757802648814,-1000.0,0.00027247,2]
[385378761,1757802648823,-1000.0,0.00027247,2]
[385378762,1757802648832,-1000.0,0.00027247,2]
[385378763,1757802648842,-1000.0,0.00027247,2]
[385378764,1757802648851,-1000.0,0.00027247,2]
[385378765,1757802648860,-1000.0,0.00027247,2]
[385378766,1757802648869,-1000.0,0.00027247,2]
[385378767,1757802648878,-500.0,0.00027247,2]
[385378768,1757802648888,-1000.0,0.00027247,2]
[385378769,1757802648897,-500.0,0.00027247,2]
[385378770,1757802648907,-1000.0,0.00027247,2]
[385378771,1757802648917,-500.0,0.00027247,2]
[385378772,1757802648927,-1000.0,0.00027247,2]
[385378773,1757802648940,-500.0,0.00027247,2]
[385378774,1757802648949,-188.16087992,0.00027247,2]
[385378775,1757802648958,-1000.0,0.00027247,2]
[385378776,1757802648967,-500.0,0.00027247,2]
[385378777,1757802648977,-1000.0,0.00027247,2]
[385378778,1757802648986,-500.0,0.00027247,2]
[385378779,1757802648995,-500.0,0.00027247,2]
[385378780,1757802649004,-500.0,0.00027247,2]
[385378781,1757802649015,-500.0,0.00027247,2]
[385378782,1757802649023,-500.0,0.00027247,2]
[385378783,1757802649032,-500.0,0.00027247,2]
[385378784,1757802649042,-500.0,0.00027247,2]
[385378785,1757802649052,-500.0,0.00027247,2]
[385378786,1757802649062,-500.0,0.00027247,2]
[385378787,1757802649071,-500.0,0.00027247,2]
[385378788,1757802649080,-500.0,0.00027247,2]
[385378789,1757802649090,-250.0,0.00027247,2]
[385378790,1757802649099,-500.0,0.00027247,2]
[385378791,1757802649109,-250.0,0.00027247,2]
[385378792,1757802649118,-250.0,0.00027247,2]
[385378793,1757802649128,-250.0,0.00027247,2]
[385378794,1757802649136,-250.0,0.00027247,2]
[385378795,1757802649146,-292.91091358,0.00027247,2]
[385378796,1757802649155,-151.0,0.00027292,7]
[385378797,1757802649164,-151.0,0.00027292,7]
[385378798,1757802649174,-151.0,0.00027292,7]
[385378799,1757802649183,-151.0,0.00027292,7]
[385378800,1757802649192,-151.0,0.00027292,7]
[385378801,1757802649201,-20045.6347129,0.00027292,3]
[385378802,1757802649210,-151.0,0.00027299,7]
[385378803,1757802649219,-151.0,0.00027299,7]
[385378804,1757802649229,-156.587,0.00027302,2]
[385378805,1757802649239,-9905.5980765,0.00027302,2]
[385378806,1757802649248,-151.0,0.00027354,7]
[385378807,1757802649258,-151.0,0.00027357,7]
[385378808,1757802649267,-151.0,0.00027357,7]
[385378809,1757802649276,-151.0,0.00027357,7]
[385378810,1757802649285,-151.0,0.00027357,7]
[385378811,1757802649294,-151.0,0.00027357,7]
[385378812,1757802649303,-151.0,0.00027357,7]
[385378813,1757802649313,-151.0,0.00027357,7]
[385378814,1757802649323,-151.0,0.00027357,7]
[385378815,1757802649331,-151.0,0.00027357,7]
[385378816,1757802649340,-151.0,0.00027357,7]
[385378817,1757802649349,-250.325379,0.00027357,7]
[385378818,1757802649358,-162.380719,0.00027357,2]
[385378819,1757802649367,-10272.10520533,0.00027357,2]
[385378820,1757802649376,-500.0,0.00027373,2]
[385378821,1757802649384,-1518.0,0.00027377,2]
[385378822,1757802649393,-151.0,0.00027377,7]
[385378823,1757802649403,-151.0,0.00027377,7]
[385378824,1757802649412,-158.909388,0.00027377,7]
[385378825,1757802649423,-151.0,0.00027377,7]
[385378826,1757802649432,-171.441218,0.00027377,7]
[385378827,1757802649444,-151.0,0.00027377,7]
[385378828,1757802649453,-40091.2694257,0.00027387,3]
[385378829,1757802649463,-151.0,0.00027387,7]
[385378830,1757802649472,-151.0,0.00027387,7]
[385378831,1757802649481,-151.0,0.00027387,7]
[385378832,1757802649490,-151.0,0.00027387,7]
[385378833,1757802649499,-20045.6347129,0.00027387,3]
[385378834,1757802649508,-150.0,0.00027396,2]
[385378835,1757802649517,-400.0,0.00027397,2]
[385378836,1757802649526,-400.0,0.00027397,2]
[385378837,1757802649535,-400.0,0.00027397,2]
[385378838,1757802649544,-400.0,0.00027397,2]
[385378839,1757802649553,-400.0,0.00027397,2]
[385378840,1757802649563,-400.0,0.00027397,2]
[385378841,1757802649575,-1171.38,0.00027397,2]
[385378842,1757802649587,-434.59,0.00027397,2]
[385378843,1757802649598,-400.0,0.00027397,2]
[385378844,1757802649607,-400.0,0.00027397,2]
[385378845,1757802649616,-400.0,0.00027397,2]
[385378846,1757802649625,-400.0,0.00027397,2]
[385378847,1757802649634,-400.0,0.00027397,2]
[385378848,1757802649643,-665.76,0.00027397,2]
[385378849,1757802649654,-476.28,0.00027397,2]
[385378850,1757802649663,-400.0,0.00027397,2]
[385378851,1757802649671,-400.0,0.00027397,2]
[385378852,1757802649680,-400.0,0.00027397,2]
[385378853,1757802649689,-552.07,0.00027397,2]
[385378854,1757802649700,-400.0,0.00027397,2]
[385378855,1757802649709,-400.0,0.00027397,2]
[385378856,1757802649718,-150.0,0.00027397,2]
[385378857,1757802649727,-500.0,0.00027397,2]
[385378858,1757802649736,-500.0,0.00027397,2]
[385378859,1757802649745,-500.0,0.00027397,2]
[385378860,1757802649754,-500.0,0.00027397,2]
[385378861,1757802649763,-500.0,0.00027397,2]
[385378862,1757802649771,-500.0,0.00027397,2]
[385378863,1757802649781,-500.0,0.00027397,2]
[385378864,1757802649790,-400.0,0.00027397,2]
[385378865,1757802649800,-400.0,0.00027397,2]
[385378866,1757802649809,-400.0,0.00027397,2]
[385378867,1757802649820,-400.0,0.00027397,2]
[385378868,1757802649831,-400.0,0.00027397,2]
[385378869,1757802649840,-400.0,0.00027397,2]
[385378870,1757802649849,-198.46828242,0.00027397,2]
[385378871,1757802649859,-400.0,0.00027397,2]
[385378872,1757802649868,-326.28840248,0.00027397,2]
[385378873,1757802649877,-400.0,0.00027397,2]
[385378874,1757802649886,-400.0,0.00027397,2]
[385378875,1757802649895,-915.29,0.00027397,2]
[385378876,1757802649904,-400.0,0.00027397,2]
[385378877,1757802649913,-538.76,0.00027397,2]
[385378878,1757802649923,-712.38,0.00027397,2]
[385378879,1757802649932,-400.0,0.00027397,2]
[385378880,1757802649941,-400.0,0.00027397,2]
[385378881,1757802649950,-400.0,0.00027397,2]
[385378882,1757802649959,-2004.11,0.00027397,2]
[385378883,1757802649969,-400.0,0.00027397,2]
[385378884,1757802649978,-488.08,0.00027397,2]
[385378885,1757802649987,-400.0,0.00027397,2]
[385378886,1757802649996,-400.0,0.00027397,2]
[385378887,1757802650004,-772.6,0.00027397,2]
[385378888,1757802650013,-400.0,0.00027397,2]
[385378889,1757802650023,-451.15,0.00027397,2]
[385378890,1757802650033,-400.0,0.00027397,2]
[385378891,1757802650042,-400.0,0.00027397,2]
[385378892,1757802650051,-858.39,0.00027397,2]
[385378893,1757802650061,-400.0,0.00027397,2]
[385378894,1757802650071,-442.26,0.00027397,2]
[385378895,1757802650079,-164.397188,0.00027397,7]
[385378896,1757802650089,-151.0,0.00027397,7]
[385378897,1757802650098,-400.0,0.00027397,2]
[385378898,1757802650107,-151.0,0.00027397,7]
[385378899,1757802650116,-400.0,0.00027397,2]
[385378900,1757802650125,-151.0,0.00027397,7]
[385378901,1757802650133,-400.0,0.00027397,2]
[385378902,1757802650142,-400.0,0.00027397,2]
[385378903,1757802650152,-500.0,0.00027397,2]
[385378904,1757802650161,-292.76333213,0.00027397,2]
[385378905,1757802650170,-834.55,0.00027397,2]
[385378906,1757802650179,-741.32,0.00027397,2]
[385378907,1757802650187,-242.6395123,0.00027397,2]
[385378908,1757802650197,-400.0,0.00027397,2]
[385378909,1757802650206,-884.83,0.00027397,2]
[385378910,1757802650214,-815.45,0.00027397,2]
[385378911,1757802650223,-480.86,0.00027397,2]
[385378912,1757802650232,-400.0,0.00027397,2]
[385378913,1757802650241,-151.0,0.00027397,7]
[385378914,1757802650250,-400.0,0.00027397,2]
[385378915,1757802650259,-400.0,0.00027397,2]
[385378916,1757802650268,-151.0,0.00027397,7]
[385378917,1757802650277,-500.0,0.00027397,2]
[385378918,1757802650286,-500.0,0.00027397,2]
[385378919,1757802650295,-500.0,0.00027397,2]
[385378920,1757802650304,-500.0,0.00027397,2]
[385378921,1757802650313,-500.0,0.00027397,2]
[385378922,1757802650322,-500.0,0.00027397,2]
[385378923,1757802650331,-500.0,0.00027397,2]
[385378924,1757802650339,-151.0,0.00027397,7]
[385378925,1757802650348,-151.0,0.00027397,7]
[385378926,1757802650357,-151.70576,0.00027397,7]
[385378927,1757802650366,-400.0,0.00027397,2]
[385378928,1757802650375,-1576.09,0.00027397,2]
[385378929,1757802650384,-463.23,0.00027397,2]
[385378930,1757802650392,-493.63,0.00027397,2]
[385378931,1757802650402,-400.0,0.00027397,2]
[385378932,1757802650411,-400.0,0.00027397,2]
[385378933,1757802650422,-1080.61,0.00027397,2]
[385378934,1757802650433,-400.0,0.00027397,2]
[385378935,1757802650444,-400.0,0.00027397,2]
[385378936,1757802650454,-400.0,0.00027397,2]
[385378937,1757802650463,-400.0,0.00027397,2]
[385378938,1757802650474,-445.19,0.00027397,2]
[385378939,1757802650484,-510.05,0.00027397,2]
[385378940,1757802650495,-400.0,0.00027397,2]
[385378941,1757802650505,-500.0,0.00027397,2]
[385378942,1757802650514,-899.68,0.00027397,2]
[385378943,1757802650524,-400.0,0.00027397,2]
[385378944,1757802650535,-400.0,0.00027397,2]
[385378945,1757802650544,-400.0,0.00027397,2]
[385378946,1757802650553,-400.0,0.00027397,2]
[385378947,1757802650563,-400.0,0.00027397,2]
[385378948,1757802650572,-1196.23,0.00027397,2]
[385378949,1757802650581,-400.0,0.00027397,2]
[385378950,1757802650591,-400.0,0.00027397,2]
[385378951,1757802650602,-400.0,0.00027397,2]
[385378952,1757802650611,-400.0,0.00027397,2]
[385378953,1757802650620,-688.9,0.00027397,2]
[385378954,1757802650629,-400.0,0.00027397,2]
[385378955,1757802650638,-170.357283,0.00027397,7]
[385378956,1757802650647,-151.0,0.00027397,7]
[385378957,1757802650657,-151.0,0.00027397,7]
[385378958,1757802650667,-679.99,0.00027397,2]
[385378959,1757802650676,-151.0,0.00027397,7]
[385378960,1757802650684,-182.347897,0.00027397,7]
[385378961,1757802650693,-574.64,0.00027397,2]
[385378962,1757802650703,-400.0,0.00027397,2]
[385378963,1757802650712,-400.0,0.00027397,2]
[385378964,1757802650721,-561.16,0.00027397,2]
[385378965,1757802650730,-592.58,0.00027397,2]
[385378966,1757802650739,-647.8,0.00027397,2]
[385378967,1757802650748,-500.0,0.00027397,2]
[385378968,1757802650757,-500.0,0.00027397,2]
[385378969,1757802650766,-500.0,0.00027397,2]
[385378970,1757802650775,-500.0,0.00027397,2]
[385378971,1757802650784,-500.0,0.00027397,2]
[385378972,1757802650792,-500.0,0.00027397,2]
[385378973,1757802650801,-500.0,0.00027397,2]
[385378974,1757802650810,-400.0,0.00027397,2]
[385378975,1757802650819,-500.0,0.00027397,2]
[385378976,1757802650828,-500.0,0.00027397,2]
[385378977,1757802650837,-400.0,0.00027397,2]
[385378978,1757802650846,-400.0,0.00027397,2]
[385378979,1757802650855,-400.0,0.00027397,2]
[385378980,1757802650863,-982.24,0.00027397,2]
[385378981,1757802650872,-542.91816967,0.00027397,2]
[385378982,1757802650882,-867.52,0.00027397,2]
[385378983,1757802650891,-400.0,0.00027397,2]
[385378984,1757802650901,-651.97,0.00027397,2]
[385378985,1757802650910,-500.0,0.00027397,2]
[385378986,1757802650920,-500.0,0.00027397,2]
[385378987,1757802650929,-500.0,0.00027397,2]
[385378988,1757802650943,-400.0,0.00027397,2]
[385378989,1757802650953,-500.0,0.00027397,2]
[385378990,1757802650962,-500.0,0.00027397,2]
[385378991,1757802650971,-500.0,0.00027397,2]
[385378992,1757802650981,-500.0,0.00027397,2]
[385378993,1757802650990,-500.0,0.00027397,2]
[385378994,1757802650999,-1219.96,0.00027397,2]
[385378995,1757802651008,-371.42194539,0.00027397,2]
[385378996,1757802651017,-431.08,0.00027397,2]
[385378997,1757802651027,-533.63,0.00027397,2]
[385378998,1757802651036,-400.0,0.00027397,2]
[385378999,1757802651045,-400.0,0.00027397,2]
[385379000,1757802651054,-400.0,0.00027397,2]
[385379001,1757802651063,-400.0,0.00027397,2]
[385379002,1757802651072,-400.0,0.00027397,2]
[385379003,1757802651081,-400.0,0.00027397,2]
[385379004,1757802651090,-400.0,0.00027397,2]
[385379005,1757802651099,-400.0,0.00027397,2]
[385379006,1757802651108,-408.81,0.00027397,2]
[385379007,1757802651117,-153.40233085,0.00027397,2]
[385379008,1757802651126,-925.67,0.00027397,2]
[385379009,1757802651135,-400.0,0.00027397,2]
[385379010,1757802651144,-1133.12,0.00027397,2]
[385379011,1757802651153,-400.0,0.00027397,2]
[385379012,1757802651162,-400.0,0.00027397,2]
[385379013,1757802651171,-400.0,0.00027397,2]
[385379014,1757802651180,-656.5,0.00027397,2]
[385379015,1757802651356,-375.79333181,0.00027397,2]
[385379016,1757802651366,-400.0,0.00027397,2]
[385379017,1757802651376,-441.96,0.00027397,2]
[385379018,1757802651385,-23249.58,0.00027397,2]
[385379019,1757802651394,-1418.74,0.00027397,2]
[385379020,1757802651403,-151.0,0.00027397,7]
[385379021,1757802651412,-224.139606,0.00027397,7]
[385379022,1757802651421,-234.31,0.00027397,2]
[385379023,1757802651431,-300.0,0.00027397,2]
[385379024,1757802651442,-151.00000002,0.00027412,2]
[385379025,1757802651451,-10652.17309792,0.00027412,2]
[385379026,1757802651460,-587.0,0.00027445,2]
[385379027,1757802651469,-500.0,0.00027463,2]
[385379028,1757802651478,-500.0,0.00027463,2]
[385379029,1757802651488,-151.0,0.00027464,7]
[385379030,1757802651499,-151.0,0.00027464,7]
[385379031,1757802651509,-11046.30350255,0.00027467,2]
[385379032,1757802651519,-160.0,0.00027492,2]
[385379033,1757802651530,-20045.6347129,0.00027512,3]
[385379034,1757802651539,-500.0,0.00027521,5]
[385379035,1757802651548,-500.0,0.00027521,5]
[385379036,1757802651558,-500.0,0.00027521,2]
[385379037,1757802651567,-500.0,0.00027521,5]
[385379038,1757802651577,-11455.01673214,0.00027522,2]
[385379039,1757802651586,-5926.0,0.00027534,2]
[385379040,1757802651596,-151.0,0.00027577,7]
[385379041,1757802651605,-151.0,0.00027577,7]
[385379042,1757802651614,-11878.85235123,0.00027577,2]
[385379043,1757802651623,-302.0,0.0002758,2]
[385379044,1757802651632,-3000.0,0.00027612,5]
[385379045,1757802651641,-20045.6347129,0.00027622,3]
[385379046,1757802651651,-151.0,0.00027632,7]
[385379047,1757802651660,-151.0,0.00027632,7]
[385379048,1757802651670,-290.42807,0.00027632,7]
[385379049,1757802651679,-151.0,0.00027632,7]
[385379050,1757802651688,-151.0,0.00027632,7]
[385379051,1757802651698,-151.0,0.00027632,7]
[385379052,1757802651707,-12318.36988823,0.00027632,2]
[385379053,1757802651718,-20045.6347129,0.00027661,3]
[385379054,1757802651728,-400.0,0.00027671,2]
[385379055,1757802651737,-359.62631126,0.00027671,2]
[385379056,1757802651747,-400.0,0.00027671,2]
[385379057,1757802651758,-400.0,0.00027671,2]
[385379058,1757802651767,-400.0,0.00027671,2]
[385379059,1757802651776,-400.0,0.00027671,2]
[385379060,1757802651786,-1171.38,0.00027671,2]
[385379061,1757802651796,-434.59,0.00027671,2]
[385379062,1757802651806,-425.1676507,0.00027671,2]
[385379063,1757802651815,-400.0,0.00027671,2]
[385379064,1757802651824,-170.76,0.00027671,2]
[385379065,1757802651834,-542.73578309,0.00027671,2]
[385379066,1757802651843,-400.0,0.00027671,2]
[385379067,1757802651852,-665.76,0.00027671,2]
[385379068,1757802651863,-476.28,0.00027671,2]
[385379069,1757802651872,-400.0,0.00027671,2]
[385379070,1757802651882,-414.16857762,0.00027671,2]
[385379071,1757802651891,-400.0,0.00027671,2]
[385379072,1757802651900,-552.07,0.00027671,2]
[385379073,1757802651909,-406.4311883,0.00027671,2]
[385379074,1757802651919,-400.0,0.00027671,2]
[385379075,1757802651928,-400.0,0.00027671,2]
[385379076,1757802651937,-400.0,0.00027671,2]
[385379077,1757802651947,-400.0,0.00027671,2]
[385379078,1757802651956,-400.0,0.00027671,2]
[385379079,1757802651965,-400.0,0.00027671,2]
[385379080,1757802651974,-400.0,0.00027671,2]
[385379081,1757802651983,-400.0,0.00027671,2]
[385379082,1757802651992,-400.0,0.00027671,2]
[385379083,1757802652002,-915.29,0.00027671,2]
[385379084,1757802652010,-400.0,0.00027671,2]
[385379085,1757802652020,-538.76,0.00027671,2]
[385379086,1757802652029,-712.38,0.00027671,2]
[385379087,1757802652038,-400.0,0.00027671,2]
[385379088,1757802652047,-400.0,0.00027671,2]
[385379089,1757802652057,-400.0,0.00027671,2]
[385379090,1757802652066,-2004.11,0.00027671,2]
[385379091,1757802652075,-400.0,0.00027671,2]
[385379092,1757802652086,-488.08,0.00027671,2]
[385379093,1757802652096,-400.0,0.00027671,2]
[385379094,1757802652105,-772.6,0.00027671,2]
[385379095,1757802652115,-400.0,0.00027671,2]
[385379096,1757802652125,-451.15,0.00027671,2]
[385379097,1757802652134,-400.0,0.00027671,2]
[385379098,1757802652145,-400.0,0.00027671,2]
[385379099,1757802652155,-858.39,0.00027671,2]
[385379100,1757802652164,-400.0,0.00027671,2]
[385379101,1757802652174,-442.26,0.00027671,2]
[385379102,1757802652184,-400.0,0.00027671,2]
[385379103,1757802652194,-295.6,0.00027671,2]
[385379104,1757802652204,-834.55,0.00027671,2]
[385379105,1757802652215,-741.32,0.00027671,2]
[385379106,1757802652224,-884.83,0.00027671,2]
[385379107,1757802652234,-815.45,0.00027671,2]
[385379108,1757802652243,-480.86,0.00027671,2]
[385379109,1757802652254,-400.0,0.00027671,2]
[385379110,1757802652263,-400.0,0.00027671,2]
[385379111,1757802652273,-400.0,0.00027671,2]
[385379112,1757802652282,-400.0,0.00027671,2]
[385379113,1757802652291,-1576.09,0.00027671,2]
[385379114,1757802652302,-463.23,0.00027671,2]
[385379115,1757802652312,-493.63,0.00027671,2]
[385379116,1757802652323,-400.0,0.00027671,2]
[385379117,1757802652336,-400.0,0.00027671,2]
[385379118,1757802652347,-1080.61,0.00027671,2]
[385379119,1757802652357,-400.0,0.00027671,2]
[385379120,1757802652367,-405.8881644,0.00027671,2]
[385379121,1757802652375,-400.0,0.00027671,2]
[385379122,1757802652386,-400.0,0.00027671,2]
[385379123,1757802652396,-445.19,0.00027671,2]
[385379124,1757802652405,-510.05,0.00027671,2]
[385379125,1757802652416,-400.0,0.00027671,2]
[385379126,1757802652426,-500.0,0.00027671,2]
[385379127,1757802652435,-899.68,0.00027671,2]
[385379128,1757802652447,-400.0,0.00027671,2]
[385379129,1757802652455,-400.0,0.00027671,2]
[385379130,1757802652464,-400.0,0.00027671,2]
[385379131,1757802652474,-400.0,0.00027671,2]
[385379132,1757802652483,-400.0,0.00027671,2]
[385379133,1757802652492,-1196.23,0.00027671,2]
[385379134,1757802652501,-400.0,0.00027671,2]
[385379135,1757802652510,-400.0,0.00027671,2]
[385379136,1757802652520,-400.0,0.00027671,2]
[385379137,1757802652529,-400.0,0.00027671,2]
[385379138,1757802652539,-688.9,0.00027671,2]
[385379139,1757802652548,-400.0,0.00027671,2]
[385379140,1757802652558,-679.99,0.00027671,2]
[385379141,1757802652567,-574.64,0.00027671,2]
[385379142,1757802652576,-400.0,0.00027671,2]
[385379143,1757802652585,-400.0,0.00027671,2]
[385379144,1757802652595,-561.16,0.00027671,2]
[385379145,1757802652603,-592.58,0.00027671,2]
[385379146,1757802652612,-647.8,0.00027671,2]
[385379147,1757802652622,-400.0,0.00027671,2]
[385379148,1757802652631,-400.0,0.00027671,2]
[385379149,1757802652640,-400.0,0.00027671,2]
[385379150,1757802652649,-400.0,0.00027671,2]
[385379151,1757802652658,-982.24,0.00027671,2]
[385379152,1757802652668,-867.52,0.00027671,2]
[385379153,1757802652677,-163.49158631,0.00027671,2]
[385379154,1757802652686,-651.97,0.00027671,2]
[385379155,1757802652695,-400.0,0.00027671,2]
[385379156,1757802652705,-1219.96,0.00027671,2]
[385379157,1757802652716,-431.08,0.00027671,2]
[385379158,1757802652726,-533.63,0.00027671,2]
[385379159,1757802652735,-400.0,0.00027671,2]
[385379160,1757802652744,-400.0,0.00027671,2]
[385379161,1757802652754,-400.0,0.00027671,2]
[385379162,1757802652763,-400.0,0.00027671,2]
[385379163,1757802652772,-400.0,0.00027671,2]
[385379164,1757802652782,-400.0,0.00027671,2]
[385379165,1757802652791,-291.375,0.00027671,2]
[385379166,1757802652800,-408.81,0.00027671,2]
[385379167,1757802652809,-925.67,0.00027671,2]
[385379168,1757802652818,-161.90351151,0.00027671,2]
[385379169,1757802652827,-1133.12,0.00027671,2]
[385379170,1757802652836,-400.0,0.00027671,2]
[385379171,1757802652845,-400.0,0.00027671,2]
[385379172,1757802652854,-370.45220425,0.00027671,2]
[385379173,1757802652863,-656.5,0.00027671,2]
[385379174,1757802652873,-400.0,0.00027671,2]
[385379175,1757802652883,-12774.14957409,0.00027687,2]
[385379176,1757802652892,-1305.46064525,0.000277,2]
[385379177,1757802652902,-20045.6347129,0.00027732,3]
[385379178,1757802652911,-13246.79310833,0.00027742,2]
[385379179,1757802652921,-151.0,0.00027795,2]
[385379180,1757802652931,-9534.64257347,0.00027797,2]
[385379181,1757802652942,-7989.71425681,0.00027802,2]
[385379182,1757802652951,-166.14,0.00027863,2]
[385379183,1757802652960,-17422.09289839,0.00027886,2]
[385379184,1757802652970,-1000.0,0.00027921,2]
[385379185,1757802652981,-40091.2694257,0.00027935,3]
[385379186,1757802652991,-400.0,0.00027945,2]
[385379187,1757802653000,-400.0,0.00027945,2]
[385379188,1757802653011,-400.0,0.00027945,2]
[385379189,1757802653021,-400.0,0.00027945,2]
[385379190,1757802653030,-400.0,0.00027945,2]
[385379191,1757802653039,-1171.38,0.00027945,2]
[385379192,1757802653049,-434.59,0.00027945,2]
[385379193,1757802653058,-400.0,0.00027945,2]
[385379194,1757802653067,-400.0,0.00027945,2]
[385379195,1757802653077,-665.76,0.00027945,2]
[385379196,1757802653087,-476.28,0.00027945,2]
[385379197,1757802653096,-400.0,0.00027945,2]
[385379198,1757802653106,-400.0,0.00027945,2]
[385379199,1757802653115,-552.07,0.00027945,2]
[385379200,1757802653124,-453.92754077,0.00027945,2]
[385379201,1757802653134,-400.0,0.00027945,2]
[385379202,1757802653143,-400.0,0.00027945,2]
[385379203,1757802653152,-400.0,0.00027945,2]
[385379204,1757802653161,-400.0,0.00027945,2]
[385379205,1757802653170,-400.0,0.00027945,2]
[385379206,1757802653179,-230.2,0.00027945,2]
[385379207,1757802653189,-254.94581975,0.00027945,2]
[385379208,1757802653198,-400.0,0.00027945,2]
[385379209,1757802653207,-915.29,0.00027945,2]
[385379210,1757802653216,-400.0,0.00027945,2]
[385379211,1757802653225,-538.76,0.00027945,2]
[385379212,1757802653235,-712.38,0.00027945,2]
[385379213,1757802653244,-193.03,0.00027945,2]
[385379214,1757802653253,-400.0,0.00027945,2]
[385379215,1757802653262,-400.0,0.00027945,2]
[385379216,1757802653271,-2004.11,0.00027945,2]
[385379217,1757802653280,-400.0,0.00027945,2]
[385379218,1757802653289,-488.08,0.00027945,2]
[385379219,1757802653298,-400.0,0.00027945,2]
[385379220,1757802653307,-772.6,0.00027945,2]
[385379221,1757802653315,-400.0,0.00027945,2]
[385379222,1757802653327,-451.15,0.00027945,2]
[385379223,1757802653336,-400.0,0.00027945,2]
[385379224,1757802653345,-400.0,0.00027945,2]
[385379225,1757802653354,-858.39,0.00027945,2]
[385379226,1757802653363,-400.0,0.00027945,2]
[385379227,1757802653372,-442.26,0.00027945,2]
[385379228,1757802653381,-400.0,0.00027945,2]
[385379229,1757802653390,-834.55,0.00027945,2]
[385379230,1757802653399,-741.32,0.00027945,2]
[385379231,1757802653407,-884.83,0.00027945,2]
[385379232,1757802653416,-815.45,0.00027945,2]
[385379233,1757802653426,-480.86,0.00027945,2]
[385379234,1757802653435,-400.0,0.00027945,2]